Cogmind - Beta 16.1 *** ADVENTURER MODE // 2026.02.17 @ 13:03:01 Player: liability Result: Destroyed by G-47 Trooper with Backup Laser III Performance ------------- Evolutions (3) 1500 Regions Visited (7) 1400 Robots Destroyed (113) 565 Value Destroyed (3577) 3577 Prototype IDs (2) 40 Alien Tech Used (0) 0 Bonus (246) 246 TOTAL SCORE: 7328 Bonus ------- High Alert Combat Kills 246 Cogmind --------- Core Integrity 0/700 Matter 12/300 Energy 100/100 System Corruption 2% Temperature Cool (9) Movement Core (350) Ox6 Location -7/Factory Parts ------- > --- POWER (1) -------- (None) > --- PROPULSION (3) --- (None) > --- UTILITY (5) ------ Large Storage Unit Machine Analyzer > --- WEAPON (4) ------- (None) > --- INVENTORY (15) --- Heat Sink Minigun Minigun Minigun Flak Cannon Datajack Welding Torch Peak State ------------ > --- POWER ------------ Micro Nuclear Core > --- PROPULSION ------- Advanced Treads Advanced Treads Advanced Treads > --- UTILITY ---------- Large Storage Unit Machine Analyzer Recoil Stabilizer Bomb Drone Bay > --- WEAPON ----------- Minigun Minigun Rocket Launcher Rocket Launcher > --- INVENTORY -------- Light Deuterium Engine Improved Deuterium Engine Improved Treads Improved Treads Heat Sink Compact Matter Pod Drone Bay Assault Rifle Improved Light Cannon Flak Cannon Flak Cannon Missile Launcher Datajack [Rating: 47] Favorites ----------- Power Improved Ion Engine Engine Improved Ion Engine Power Core Light Nuclear Core Propulsion Improved Treads Treads Improved Treads Leg Aluminum Leg Utility Large Storage Unit Device Seismic Detector Storage Large Storage Unit Processor Machine Analyzer Protection Insulated Plating Weapon Rocket Launcher Ballistic Gun Assault Rifle Ballistic Cannon Flak Cannon Launcher Rocket Launcher Special Weapon Welding Torch Build | -11 -10 -10 -10 -9 -8 -8 -7 ------- Run | Yrd Mat Min Exi Min Mat Sto Fac Slots Evolved 6 | . . . . . 4 . 2 Power . | . . . . . . . . Propulsion 1 | . . . . . 1 . . Utility 3 | . . . . . 2 . 1 Weapon 2 | . . . . . 1 . 1 Parts Attached 47 | 6 6 1 . . 11 10 13 Power 6 | 1 1 . . . . 2 2 Engine 4 | 1 1 . . . . 1 1 Core 2 | . . . . . . 1 1 Reactor . | . . . . . . . . Propulsion 10 | 2 2 . . . 3 2 1 Treads 8 | . 2 . . . 3 2 1 Leg 2 | 2 . . . . . . . Wheel . | . . . . . . . . Hover . | . . . . . . . . Flight . | . . . . . . . . Utility 15 | 1 2 . . . 6 4 2 Device 6 | . 1 . . . 2 2 1 Storage 3 | 1 1 . . . . . 1 Processor 3 | . . . . . 1 2 . Hackware . | . . . . . . . . Protection 3 | . . . . . 3 . . Artifact . | . . . . . . . . Weapon 16 | 2 1 1 . . 2 2 8 Energy Gun . | . . . . . . . . Energy Cannon . | . . . . . . . . Ballistic Gun 5 | 2 . . . . . 2 1 Ballistic Cannon 3 | . . . . . . . 3 Launcher 7 | . 1 1 . . 2 . 3 Special Weapon 1 | . . . . . . . 1 Impact Weapon . | . . . . . . . . Slashing Weapon . | . . . . . . . . Piercing Weapon . | . . . . . . . . Special Melee Weapon . | . . . . . . . . Unidentified Prototypes 2 | . . . . . 1 . 1 Parts Lost 26 | . . . . 1 3 2 20 Power 2 | . . . . . . . 2 Propulsion 7 | . . . . . 1 1 5 Utility 5 | . . . . . . 1 4 Weapon 12 | . . . . 1 2 . 9 Highest Loss Streak 8 | . . . . 1 3 1 8 To Critical Strikes . | . . . . . . . . Average Backups 9 | . 3 6 10 12 10 11 9 Power 1 | . . . 2 3 2 . . Propulsion 2 | . 2 3 3 3 2 2 1 Utility 2 | . . . 2 3 4 4 2 Weapon 2 | . . 1 2 1 . 3 3 Tool/Special . | . . . . . . . . Unused Backups 6 | . . . . . 1 3 2 Power 3 | . . . . . 1 2 . Propulsion . | . . . . . . . . Utility 1 | . . . . . . 1 . Weapon 1 | . . . . . . . 1 Tool/Special 1 | . . . . . . . 1 Average Slot Usage (%) 92 | . 99 100 100 99 90 93 78 Engine 9 | . 14 14 14 14 9 3 4 Core 1 | . . . . . . 5 . Treads 24 | . 21 28 28 28 24 25 18 Device 10 | . 13 14 14 14 4 2 11 Storage 11 | . 14 14 14 14 9 9 8 Processor 5 | . . . . . 5 17 7 Protection 1 | . . . . . 12 1 . Ballistic Gun 13 | . 23 14 14 13 9 15 6 Ballistic Cannon 1 | . . . . . . . 8 Launcher 11 | . 4 14 14 14 16 11 9 Peak Build Rating 47 | 6 10 12 13 14 30 34 47 Average Rating 21 | 4 9 11 12 13 23 29 37 On Entrance 14 | . 6 10 12 13 14 27 30 Avg Prop Armor Cover (%) . | . . . . . . . . Naked Turns . | . . . . . . . . Heaviest Build 64 | 14 33 34 34 34 52 52 64 Greatest Support 69 | 20 46 46 46 46 69 68 67 Greatest Overweight (x) 9 | . . . . . 1 1 9 Average Overweight (x) . | . . . . . . . . Largest Inventory Capacity 15 | 8 15 15 15 15 15 15 15 Average Capacity 14 | 6 13 15 15 15 15 15 15 Most Carried 15 | 5 5 8 11 14 15 15 13 Average Carried 10 | . 3 6 10 12 12 12 9 Final Capacity 15 | 8 15 15 15 15 15 15 15 Final Carried 13 | . 5 8 11 13 10 13 7 Class Distribution -------------------- 54% | Mutant 14% | Gunner 12% | Tank 12% | Bomber 6% | Skirmisher Dominant Class ---------------- Mutant | -10/Materials Mutant | -10/Mines Mutant | -10/Exiles Mutant | -9/Mines Tank | -8/Materials Gunner | -8/Storage Bomber | -7/Factory Resources | -11 -10 -10 -10 -9 -8 -8 -7 ----------- Run | Yrd Mat Min Exi Min Mat Sto Fac Matter Collected 2645 | 228 . 107 . 368 285 975 682 Remotely . | . . . . . . . . Salvage Created 2794 | . 57 108 . 128 750 1257 494 Parts 158 | . 6 2 . 10 49 53 38 Haulers Intercepted 2 | . . . . . . 2 . Recyclers Shooed 1 | . . . . . . 1 . Parts Field Recycled . | . . . . . . . . Retrieved Matter . | . . . . . . . . Parts Self-Destructed . | . . . . . . . . Prevented . | . . . . . . . . Parts Restored . | . . . . . . . . Kills | -11 -10 -10 -10 -9 -8 -8 -7 ------- Run | Yrd Mat Min Exi Min Mat Sto Fac Combat Hostiles Destroyed 80 | . 6 4 . 7 22 20 21 Guns 20 | . 3 1 . . 4 12 . Cannons 8 | . . . . . . . 8 AOE 52 | . 3 3 . 7 18 8 13 Classes Destroyed 12 | . 3 1 . 1 4 1 2 Worker 9 | . 1 . . 1 3 2 2 Builder 10 | . . . . 1 3 . 6 Hauler 2 | . . . . . . 2 . Recycler 8 | . . . . . 2 5 1 Drone 1 | . . . . . . . 1 Watcher 4 | . 1 . . . . 1 2 Swarmer 20 | . 6 . . 3 4 . 7 Grunt 43 | . . 4 . 4 11 14 10 Brawler 1 | . . . . . 1 . . Duelist 1 | . . . . . . . 1 Sentry 13 | . . . . . 5 6 2 Hunter 2 | . . . . . 1 . 1 Best Kill Streak 9 | . 4 2 . 3 9 9 7 Combat Bots Only 7 | . 3 2 . 3 6 7 5 Max Kills in Single Turn 5 | . 3 1 . 3 4 5 5 Gunslinging 1 | . 1 . . . . . . Exploded 3 | . 2 1 . 3 3 3 2 Melee . | . . . . . . . . Uniques/NPCs Destroyed . | . . . . . . . . Combat | -11 -10 -10 -10 -9 -8 -8 -7 -------- Run | Yrd Mat Min Exi Min Mat Sto Fac Hostile Shots Fired 830 | . 35 12 . 22 67 92 602 Missed 289 | . 18 2 . 3 12 26 228 Hits 541 | . 17 10 . 19 55 66 374 Melee 4 | . . . . . . 2 2 Projectile 537 | . 17 10 . 19 55 64 372 AOE 2 | . . . . . . . 2 Critical Strikes 6 | . . . . 1 2 2 1 Damage Taken 5252 | . 102 183 . 243 716 882 3126 Core 992 | . 16 53 . 32 59 127 705 Absorbed by Shields . | . . . . . . . . Ignored by Resistances 1648 | . 37 52 . 69 249 248 993 Regen/Repaired (Parts) 293 | . . . . . . 293 . Core Remaining (%) 75 | 100 . . . 59 . 66 . Volleys Fired 144 | . 18 8 . 7 22 46 43 Largest 4 | . 2 2 . 2 3 3 4 Hottest 164 | . 50 53 . 53 86 86 164 Shots Fired 345 | . 36 16 . 13 55 120 105 Gun 176 | . 33 8 . 6 22 86 21 Cannon 61 | . . . . . . . 61 Launcher 108 | . 3 8 . 7 33 34 23 Special . | . . . . . . . . Kinetic 237 | . 33 8 . 6 22 86 82 Thermal . | . . . . . . . . Explosive 108 | . 3 8 . 7 33 34 23 Electromagnetic . | . . . . . . . . Robot Hit Streak 40 | . 10 10 . 7 13 40 19 Robot Miss Streak 7 | . 3 2 . 3 1 2 7 Penetration Max . | . . . . . . . . Secondary Targets 1 | . 1 . . . . . . Max Gunslinging Chain 1 | . 1 . . . . . . Shots Hit Robots 261 | . 27 13 . 8 40 89 84 Core Hits 241 | . 9 9 . 13 63 51 96 Critical Kills 2 | . . . . . . 2 . Critical Parts Destroyed . | . . . . . . . . Critical Strikes 2 | . . . . . . 2 . Destroy 2 | . . . . . . 2 . Melee Attacks . | . . . . . . . . Impact . | . . . . . . . . Slashing . | . . . . . . . . Piercing . | . . . . . . . . Sneak Attacks . | . . . . . . . . Combat Hostiles . | . . . . . . . . Follow-up Attacks . | . . . . . . . . Damage Inflicted 9870 | . 732 456 . 564 2465 2690 2963 Guns 2135 | . 309 86 . 36 260 1180 264 Cannons 1222 | . . . . . . . 1222 Explosions 6438 | . 413 360 . 506 2191 1510 1458 Melee . | . . . . . . . . Ramming 75 | . 10 10 . 22 14 . 19 Kinetic 3357 | . 309 86 . 36 260 1180 1486 Thermal . | . . . . . . . . Explosive 6438 | . 413 360 . 506 2191 1510 1458 Electromagnetic . | . . . . . . . . Impact . | . . . . . . . . Slashing . | . . . . . . . . Piercing . | . . . . . . . . Highest Corruption 6 | . . . . . . 6 2 Average Corruption 1 | . . . . . . 1 1 Corruption Purged . | . . . . . . . . Corruption Blocked . | . . . . . . . . Effects 14 | . . . . . . 9 5 Message Errors 3 | . . . . . . 2 1 Matter Fused 4 | . . . . . . 4 . Heat Flow Errors 1 | . . . . . . . 1 Energy Discharges 3 | . . . . . . 2 1 Parts Rejected 2 | . . . . . . . 2 Data Loss (minor) 1 | . . . . . . 1 . Overload Shots . | . . . . . . . . Overflow Damage 153 | . 25 . . 32 28 21 47 Projectiles . | . . . . . . . . Explosions 150 | . 25 . . 32 25 21 47 Melee 3 | . . . . . 3 . . Knockbacks 23 | . . . . . . . 23 Impact . | . . . . . . . . Kinetic 22 | . . . . . . . 22 Secondary 1 | . . . . . . . 1 Self-Inflicted Damage 474 | . 9 75 . 75 63 52 200 Shots 23 | . 1 4 . 2 3 4 9 Rammed 9 | . 2 1 . 2 1 . 3 Targets Rammed 10 | . 2 1 . 3 1 . 3 Kicked . | . . . . . . . . Crushed 1 | . . . . 1 . . . Highest Temperature 214 | . . 21 . 24 214 114 203 Average Temperature 46 | . . 12 . 12 76 35 36 Received Heat Transfer 2088 | . . 84 . 75 405 459 1065 Effects 1 | . . . . . 1 . . Energy Bleed 1 | . . . . . 1 . . Siege Activations . | . . . . . . . . Martial Activations . | . . . . . . . . Shielding Activations . | . . . . . . . . Robots Disrupted . | . . . . . . . . Combat Hostiles . | . . . . . . . . Robots Corrupted . | . . . . . . . . Combat Hostiles . | . . . . . . . . Parts Fried . | . . . . . . . . Impact Corruptions 1 | . . . . . 1 . . Robots Melted . | . . . . . . . . Combat Hostiles . | . . . . . . . . Parts Melted . | . . . . . . . . Heat Transferred . | . . . . . . . . Parts Sabotaged . | . . . . . . . . Parts Stolen . | . . . . . . . . Parts Stripped . | . . . . . . . . Power Chain Reactions . | . . . . . . . . Alert | -11 -10 -10 -10 -9 -8 -8 -7 ------- Run | Yrd Mat Min Exi Min Mat Sto Fac Maximum Alert Level 2 | . . . . . 2 2 2 Low Security (%) 61 | 100 100 100 . 100 59 25 26 Level 1 19 | . . . . . 18 26 46 Level 2 19 | . . . . . 21 48 27 Level 3 . | . . . . . . . . Level 4 . | . . . . . . . . Level 5 . | . . . . . . . . High Security . | . . . . . . . . Max Security . | . . . . . . . . Peak Influence 612 | . 146 98 . 77 572 612 538 Initial 222 | . . 29 . . 21 202 222 Average 189 | . 50 39 . 16 209 364 303 Influence Increases 3101 | . 211 139 . 240 762 820 929 Destroy 0b10 Robot/C 1600 | . 120 80 . 140 440 400 420 Destroy 0b10 Robot/NC 165 | . 10 . . 10 40 50 55 Destroy Leader 382 | . 22 20 . 30 110 116 84 Disable Machine 153 | . 18 9 . 9 18 63 36 Anti-Garrison Action 150 | . . . . . . . 150 Destroy Structure 606 | . 26 30 . 51 154 191 154 Lose Combat Pursuer 45 | . 15 . . . . . 30 Influence Decreases 2720 | . 120 230 . 174 266 810 1120 Entered New Map 817 | . . 62 . . 45 360 350 Time Decay 1553 | . 120 168 . 164 191 410 500 Lost Part 260 | . . . . 10 30 20 200 Lost Ally 90 | . . . . . . 20 70 Squads Dispatched 15 | . . . . . 1 3 11 Investigation . | . . . . . . . . Extermination 1 | . . . . . . . 1 Reinforcement 7 | . . . . . 1 2 4 Assault 3 | . . . . . . 1 2 Garrison 4 | . . . . . . . 4 Intercept . | . . . . . . . . Searches Triggered . | . . . . . . . . Construction Impeded 3 | . . . . . 1 . 2 Haulers Reinforced . | . . . . . . . . Active Scanning Responses . | . . . . . . . . Cargo Convoy Interrupts . | . . . . . . . . Stealth | -11 -10 -10 -10 -9 -8 -8 -7 --------- Run | Yrd Mat Min Exi Min Mat Sto Fac Distress Signals 7 | . 1 . . . . 3 3 Communications Jammed . | . . . . . . . . Distress Signals . | . . . . . . . . Times Spotted 116 | . 9 4 . 7 25 29 42 Peak Tracking Total 6 | . 5 2 . 3 6 6 6 Tactical Retreats 3 | . 1 . . . . . 2 Traps | -11 -10 -10 -10 -9 -8 -8 -7 ------- Run | Yrd Mat Min Exi Min Mat Sto Fac Traps Triggered 5 | . . . . . . 2 3 Indirectly . | . . . . . . . . Trap Hack Attempts . | . . . . . . . . Triggered . | . . . . . . . . Disarmed . | . . . . . . . . Reprogrammed . | . . . . . . . . Reused . | . . . . . . . . Traps Extracted . | . . . . . . . . Installed . | . . . . . . . . Triggered . | . . . . . . . . Machines | -11 -10 -10 -10 -9 -8 -8 -7 ---------- Run | Yrd Mat Min Exi Min Mat Sto Fac Machines Disabled 18 | . 2 1 . 1 2 7 5 Max in Single Turn 2 | . 2 1 . 1 1 1 2 Garrison Access 2 | . . . . . . . 2 Machines Repaired . | . . . . . . . . Machines Dismantled . | . . . . . . . . Machines Sabotaged . | . . . . . . . . Overloaded Fab Kills . | . . . . . . . . Hacking | -11 -10 -10 -10 -9 -8 -8 -7 --------- Run | Yrd Mat Min Exi Min Mat Sto Fac Machines Accessed 5 | . . . . 1 1 2 1 Terminals 2 | . . . . . 1 1 . Fabricators 1 | . . . . . . . 1 Repair Stations 1 | . . . . . . 1 . Recycling Units . | . . . . . . . . Scanalyzers . | . . . . . . . . Garrison Access . | . . . . . . . . Total Hacks 10 | . . . . 1 3 5 1 Successful 7 | . . . . 1 1 5 . Failed 3 | . . . . . 2 . 1 Catastrophic . | . . . . . . . . Database Lockouts . | . . . . . . . . Manual . | . . . . . . . . Terminals 4 | . . . . . 3 1 . Fabricators 1 | . . . . . . . 1 Repair Stations 4 | . . . . . . 4 . Recycling Units . | . . . . . . . . Scanalyzers . | . . . . . . . . Garrison Access . | . . . . . . . . Terminal Hacks 3 | . . . . 1 1 1 . Open Door 2 | . . . . 1 . 1 . Locate Traps 1 | . . . . . 1 . . Fabricator Hacks . | . . . . . . . . Repair Station Hacks 4 | . . . . . . 4 . Scan Component 2 | . . . . . . 2 . Repair 2 | . . . . . . 2 . Recycling Unit Hacks . | . . . . . . . . Scanalyzer . | . . . . . . . . Garrison Access Hacks . | . . . . . . . . Unauthorized Hacks . | . . . . . . . . Terminals . | . . . . . . . . Fabricators . | . . . . . . . . Repair Stations . | . . . . . . . . Recycling Units . | . . . . . . . . Scanalyzers . | . . . . . . . . Garrison Access . | . . . . . . . . Data Cores Recovered . | . . . . . . . . Used . | . . . . . . . . Hacking Detections 4 | . . . . . 1 2 1 Full Trace Events 1 | . . . . . 1 . . Feedback Events . | . . . . . . . . Feedback Blocked . | . . . . . . . . Robot Schematics Acquired . | . . . . . . . . Robots Built . | . . . . . . . . Authchips . | . . . . . . . . Time . | . . . . . . . . Total Robot Build Rating . | . . . . . . . . Part Schematics Acquired . | . . . . . . . . Parts Built . | . . . . . . . . Authchips . | . . . . . . . . Time . | . . . . . . . . Total Part Build Rating . | . . . . . . . . Part Studies Acquired . | . . . . . . . . Parts Repaired 2 | . . . . . . 2 . Time 76 | . . . . . . 76 . Parts Recycled . | . . . . . . . . Recycled Matter . | . . . . . . . . Retrieved Matter . | . . . . . . . . Retrieved Components . | . . . . . . . . Parts Scanalyzed . | . . . . . . . . Part Schematics Acquired . | . . . . . . . . Parts Damaged . | . . . . . . . . Bothacking | -11 -10 -10 -10 -9 -8 -8 -7 ------------ Run | Yrd Mat Min Exi Min Mat Sto Fac Used RIF Installer . | . . . . . . . . Robots Hacked . | . . . . . . . . Non-combat . | . . . . . . . . Combat . | . . . . . . . . Robot Hacks Applied . | . . . . . . . . Relay Couplers Released 3 | . . . . . . . 3 Machine Destruction 3 | . . . . . . . 3 Fabnet Peak Effective % . | . . . . . . . . Robots Rewired . | . . . . . . . . Allies Hacked . | . . . . . . . . Hacks Repelled . | . . . . . . . . Allies | -11 -10 -10 -10 -9 -8 -8 -7 -------- Run | Yrd Mat Min Exi Min Mat Sto Fac Total Allies . | . . . . . . . . Largest Group . | . . . . . . . . Highest-Rated Group . | . . . . . . . . Highest-Rated Ally . | . . . . . . . . Total Orders 8 | . . . . . . 4 4 STAY 2 | . . . . . . 2 . EXPLORE 4 | . . . . . . 2 2 RETURN 2 | . . . . . . . 2 Ally Attacks 8 | . . . . . . . 8 Total Damage . | . . . . . . . . Kills . | . . . . . . . . Allies Corrupted . | . . . . . . . . Allies Melted . | . . . . . . . . Intel | -11 -10 -10 -10 -9 -8 -8 -7 ------- Run | Yrd Mat Min Exi Min Mat Sto Fac Active Infowar (turns) 4548 | . 465 469 602 699 474 829 1010 Seismic 2424 | . 465 469 602 699 189 . . Machine Analysis 2156 | . . . . . 317 829 1010 Robot Analysis Total . | . . . . . . . . Derelict Logs Recovered 1 | . . . . 1 . . . Drone Launches 26 | . . . . . . 2 24 Drone Recoveries 13 | . . . . . . . 13 Exploration | -11 -10 -10 -10 -9 -8 -8 -7 ------------- Run | Yrd Mat Min Exi Min Mat Sto Fac Turns Passed 4619 | 55 481 469 602 699 474 829 1010 Spaces Moved 2529 | 46 273 275 375 420 229 390 521 Core 27 | 17 . . . . . . 10 Treads 2391 | . 191 275 375 420 229 390 511 Legs 111 | 29 82 . . . . . . Wheels . | . . . . . . . . Hover . | . . . . . . . . Flight . | . . . . . . . . Fastest Speed 50 | 50 120 160 160 160 152 145 145 Average Speed 157 | 94 147 160 160 160 167 151 160 Slowest Speed 500 | 120 160 160 160 160 232 232 500 Overloaded Moves . | . . . . . . . . Propulsion Burnouts . | . . . . . . . . Robots Hopped . | . . . . . . . . Potential Cave-ins . | . . . . . . . . Cave-ins Triggered . | . . . . . . . . Exploration Rate (%) 48 | 3 63 31 78 91 30 69 22 Regions Visited 7 Branch Regions 4 Pre-discovered Areas 1 | . . 1 . . . . . Known Exits Taken . | . . . . . . . . Unknown Exits Taken 7 | 1 1 1 1 1 1 1 . Scrap Searched 2 | . . 1 . 1 . . . Spaces Dug . | . . . . . . . . Terrain Destroyed 768 | . 23 44 . 65 176 261 199 Melee . | . . . . . . . . Projectile . | . . . . . . . . AOE 768 | . 23 44 . 65 176 261 199 Terrain Rammed . | . . . . . . . . Walls Destroyed . | . . . . . . . . Machines Disabled . | . . . . . . . . Actions | -11 -10 -10 -10 -9 -8 -8 -7 --------- Run | Yrd Mat Min Exi Min Mat Sto Fac Total 2894 | 57 312 287 377 432 276 551 602 Wait 73 | . . . . . . 73 . Move 2522 | 45 272 274 374 419 228 389 521 Hop . | . . . . . . . . Pick Up 61 | 6 10 3 3 2 7 18 12 Fast Attach . | . . . . . . . . Attach 42 | 6 1 . . 1 10 8 16 Detach 3 | . . . . . 2 1 . Swap 17 | . 5 1 . . 2 5 4 Drop 22 | . 4 . . . 4 11 3 Fire 144 | . 18 8 . 7 22 46 43 Melee . | . . . . . . . . Ram . | . . . . . . . . Kick . | . . . . . . . . Crush 10 | . 2 1 . 3 1 . 3 Escape Stasis . | . . . . . . . . Rewire . | . . . . . . . . Trap . | . . . . . . . . Miscellaneous . | . . . . . . . . Route ------- -11/Scrapyard -10/Materials (discovered 2 exits: [*Mat] / [*Min]) -10/Mines -10/Exiles (discovered 2 exits: *Min x2) -9/Mines (discovered 2 exits: *Mat x2) -8/Materials -8/Storage -7/Factory History --------- Turn | Location | Event 3 | -11/Scrapyard | Discovered new exit (range 15) 56 | -11/Scrapyard | Entered Materials 200 | -10/Materials | Discovered new exit (range 11) 310 | -10/Materials | Build established: Mutant 461 | -10/Materials | Discovered new exit (range 8) 537 | -10/Materials | Entered Mines 570 | -10/Mines | Deemed a non-threat by the Exiles lab entrance 570 | -10/Mines | Discovered new exit (range 5) 637 | -10/Mines | Received a Rocket Launcher from a helpful Derelict 759 | -10/Mines | Assembled infested the area 764 | -10/Mines | Assisted by a Guerilla fighting off Assembled 849 | -10/Mines | Learned location of Storage (-8) 1006 | -10/Mines | Entered Exiles 1059 | -10/Exiles | Discovered new exit (range 14) 1099 | -10/Exiles | Met 8R-AWN 1125 | -10/Exiles | Met EX-HEX 1225 | -10/Exiles | Met EX-DEC 1257 | -10/Exiles | Visited The Gauntlet 1531 | -10/Exiles | Discovered new exit (range 14) 1608 | -10/Exiles | Entered Mines 1756 | -9/Mines | Discovered new exit (range 8) 1875 | -9/Mines | Found the Drone Emporium 1884 | -9/Mines | Found Prototype Device 1941 | -9/Mines | Discovered new exit (range 5) 2034 | -9/Mines | Learned Materials interactive machine intel 2307 | -9/Mines | Entered Materials 2307 | -8/Materials | Evolved 4 slots: Propulsion x1, Utility x2, Weapon x1 2308 | -8/Materials | Loaded intel: 19 interactive machine locations 2308 | -8/Materials | Identified Bomb Drone Bay 2540 | -8/Materials | Discovered new exit (range 7) 2621 | -8/Materials | Build established: Tank 2694 | -8/Materials | Lost 3 parts (1n2w) 2781 | -8/Materials | Entered Storage 3250 | -8/Storage | Destroyed 7 combat bots 3324 | -8/Storage | Repaired Adv. Treads 3366 | -8/Storage | Repaired Adv. Treads 3423 | -8/Storage | Build established: Gunner 3524 | -8/Storage | Discovered new exit (range 16) 3581 | -8/Storage | First assault squad dispatched 3610 | -8/Storage | Entered Factory 3610 | -7/Factory | Evolved 2 slots: Utility x1, Weapon x1 3902 | -7/Factory | Garrison activated, responded to threat 3952 | -7/Factory | Build established: Bomber 4036 | -7/Factory | Lost 3 allies 4176 | -7/Factory | Found Prototype Launcher 4179 | -7/Factory | Found Prototype Launcher 4261 | -7/Factory | Identified Rocket Array (x2) 4276 | -7/Factory | Garrison activated, responded to threat 4361 | -7/Factory | Lost 3 parts (2n1u) 4422 | -7/Factory | Garrison activated, responded to threat 4455 | -7/Factory | Lost 3 parts (1p1u1w) 4577 | -7/Factory | Core integrity fell below 50% 4606 | -7/Factory | Core integrity fell below 20% 4620 | -7/Factory | Destroyed by G-47 Trooper with Backup Laser III Last Messages --------------- Matter Pump disabled. Imp. Treads destroyed. Lgt. Deuterium Engine destroyed. CBFPVCE%K3QJN WUC MN> YX0AJF50<8,UE3 U-05 Engineer lays Concrete. K-01 Serf collects debris. U-05 Engineer lays Concrete. K-01 Serf collects debris. U-05 Engineer lays Concrete. K-01 Serf collects debris. U-05 Engineer lays Concrete. K-01 Serf collects debris. U-05 Engineer lays Concrete. K-01 Serf collects debris. U-05 Engineer lays Concrete. K-01 Serf collects debris. U-05 Engineer lays Concrete. K-01 Serf collects debris. Minigun destroyed. K-01 Serf collects debris. Map ----- +----------------------------------------------------+ | ????????????????########?# #????????# | | ??????????????? #?# #????????# | | ??????????????? ### ###??????# ? | | ??????????????? # #?????## ??? | | ?????????????? """ """ # ##### ???? | | ????????????? """ """ # ??? | | ??????????# """ """ # ??? | | ??????????# + T ## | | ??????????# """ """ # | | ??????????# """ """ # | | ??????????# """ """ # ### # # | | ??????????# # # # # | | ??????????# ## ## # # # | | ??????????###+#####+##### # " # | | ????????????# ! ^ # " # | | ????????????# * ! # " + | | ???########## """ [!! =k! + " ##### | | ???? "G =!! # " #??? | | ????????## ^ =!! # " ## | | ?????????# # " | | ????????## k """ """ # # | | ???????### "" """ ## + | | ??????## # " """ """ # # | | ??????# g %# # | | ??????# Y ## ""###### | | ??????# Y @ + " #????? | | ??????+ Y % ## " #?????## | | ??????# u % # " #??????? | | ??????# ######### #???????? | | ??????# # # ####???????? | | ??????# ! #### #???????????? | | ??+#### # ????????????? | | ??? # ????????????? | | ??? % + ????????????? | | """"""""" # # ??????????? | | # # ??????????? | | """"""""" ### #!%= # ???????????? | | #?####### = !# ???????????? | | """"""""" #???### # ????????????? | | #?### # ] # ????????????? | | """"""""" ### ########## #?####????????????? | | # ###??????###?##?????? | | """"""""" ## #???????? ###### | | ### #?#????? + | | """"""""" + #?# # # | | ? ## !#?#! """ """ # # | | """"""""" ## #/# # +######?# """ """ + | | ???? # # # #????# """ """ # | | ??""""""""" # # # #????# | | ? ## # ## " #????# """ """ + | +----------------------------------------------------+ Best States ------------- Heat Dissipation 41 Energy Generation 16 Energy Capacity 290 Matter Stores 325 Matter Capacity 450 Sight Range 16 Terrain Scan Density 10 Armor Coverage 600 Resistance: KI 40 Resistance: TH 20 Resistance: EX 20 Resistance: EM 35 Resistance: I 20 Resistance: S 20 Resistance: P 20 Evasion (%) 55 Targeting Accuracy 5 Recoil Reduction 7 Offensive Hacking 10 Item Schematics ----------------- None Robot Schematics ------------------ None Fabricated ------------ Nothing Repaired ---------- Adv. Treads | 11% | -8/Storage Adv. Treads | 16% | -8/Storage Studied --------- None Alien Tech Used ----------------- None Achievements -------------- More Dakka Please Release The Drones! Challenges ------------ None Game ------ Seed GaussArmageddonMagmablaster Manual? 0 Play Time 00:41:34 Cumulative 15.5 hours Start 2026.02.17 @ 12:20:29 End 2026.02.17 @ 13:03:01 Sessions 1 Manual Loads 0 Difficulty Adventurer Special Mode None Game No. 17 Rogue 0 Adventurer 17 Explorer 0 Win Type - Total 0 Types 0/0/0/0/0/0/0/0/0/0 Lore% 5 Gallery% 21 Achievement% 19 Wizard Run 0 Options --------- Layout 1 ASCII 0 Keyboard 0 Movement Mouse Keybinds 0 Fullscreen 1 Font 24/X11 Map View 50x35 Zoom Use 0% Tactical HUD 0 Map Filters NONE Filters NONE Steam 1 RUN: 50f206ef-57fe-4690-998f-e2c17433e5ed